Cogmind - Beta 15 @@@ ROGUE MODE // 2025.05.31 @ 02:30:00 Player: kivi189 Result: Destroyed by G-34 Mercenary with Small Laser Performance ------------- Evolutions (0) 0 Regions Visited (1) 200 Robots Destroyed (20) 100 Value Destroyed (487) 487 Prototype IDs (0) 0 Alien Tech Used (0) 0 Bonus (0) 0 TOTAL SCORE: 787 Bonus ------- None Cogmind --------- Core Integrity 0/250 Matter 300/300 Energy 243/250 System Corruption 2% Temperature Cool (36) Movement Walking (120) Location -10/Materials Parts ------- > --- POWER (1) -------- Ion Engine > --- PROPULSION (2) --- Aluminum Leg Aluminum Leg > --- UTILITY (2) ------ Small Storage Unit Terrain Scanner > --- WEAPON (2) ------- Small Laser Small Laser > --- INVENTORY (8) ---- Light Ion Engine Aluminum Leg Aluminum Leg Heat Sink Small Matter Pod (50) Light Assault Rifle Datajack Peak State ------------ > --- POWER ------------ Ion Engine > --- PROPULSION ------- Aluminum Leg Aluminum Leg > --- UTILITY ---------- Structural Scanner Visual Processing Unit > --- WEAPON ----------- Particle Gun Assault Rifle > --- INVENTORY -------- Ion Engine Light Ion Engine Aluminum Leg EM Pulse Gun Datajack [Rating: 9] Favorites ----------- Power Ion Engine Engine Ion Engine Propulsion Aluminum Leg Leg Aluminum Leg Utility Small Storage Unit Device Terrain Scanner Storage Small Storage Unit Processor Visual Processing Unit Weapon Small Laser Energy Gun Small Laser Ballistic Gun Assault Rifle Impact Weapon Hammer Special Melee Weapon Datajack Build | -11 -10 ------- Run | Yrd Mat Slots Evolved . | . . Power . | . . Propulsion . | . . Utility . | . . Weapon . | . . Parts Attached 29 | 5 24 Power 5 | 1 4 Engine 5 | 1 4 Core . | . . Reactor . | . . Propulsion 7 | 2 5 Treads . | . . Leg 7 | 2 5 Wheel . | . . Hover . | . . Flight . | . . Utility 8 | . 8 Device 4 | . 4 Storage 3 | . 3 Processor 1 | . 1 Hackware . | . . Protection . | . . Artifact . | . . Weapon 9 | 2 7 Energy Gun 4 | . 4 Energy Cannon . | . . Ballistic Gun 3 | 2 1 Ballistic Cannon . | . . Launcher . | . . Special Weapon . | . . Impact Weapon 1 | . 1 Slashing Weapon . | . . Piercing Weapon . | . . Special Melee Weapon 1 | . 1 Unidentified Prototypes . | . . Parts Lost 8 | . 8 Power 1 | . 1 Propulsion 3 | . 3 Utility 2 | . 2 Weapon 2 | . 2 Highest Loss Streak 8 | . 8 To Critical Strikes . | . . Average Backups 5 | 1 5 Power 1 | . 1 Propulsion 1 | . 1 Utility 1 | . 1 Weapon 1 | . 1 Tool/Special . | . . Unused Backups 7 | . 7 Power 2 | . 2 Propulsion 3 | . 3 Utility . | . . Weapon 2 | . 2 Tool/Special . | . . Average Slot Usage (%) 94 | . 94 Engine 13 | . 13 Leg 27 | . 27 Device 11 | . 11 Storage 11 | . 11 Processor 1 | . 1 Energy Gun 20 | . 20 Ballistic Gun 5 | . 5 Special Melee Weapon 1 | . 1 Peak Build Rating 9 | 5 9 Average Rating 6 | 3 6 On Entrance 2 | . 5 Naked Turns . | . . Heaviest Build 17 | 7 17 Greatest Support 20 | 20 20 Greatest Overweight (x) 5 | . 5 Average Overweight (x) . | . . Largest Inventory Capacity 15 | 5 15 Average Capacity 7 | 5 7 Most Carried 7 | 5 7 Average Carried 5 | 1 5 Final Capacity 8 | 5 8 Final Carried 7 | 4 7 Class Distribution -------------------- 54% | Scavenger-Mutant 45% | Mutant Dominant Class ---------------- Scavenger-Mutant | -10/Materials Resources | -11 -10 ----------- Run | Yrd Mat Matter Collected 862 | 280 582 Remotely . | . . Salvage Created 553 | 45 508 Parts 44 | 3 41 Haulers Intercepted . | . . Recyclers Shooed . | . . Parts Field Recycled . | . . Retrieved Matter . | . . Parts Self-Destructed . | . . Prevented . | . . Kills | -11 -10 ------- Run | Yrd Mat Combat Hostiles Destroyed 16 | 1 15 Melee 1 | . 1 Guns 14 | 1 13 Classes Destroyed 4 | 1 3 Operator 1 | . 1 Watcher 3 | . 3 Swarmer 6 | . 6 Grunt 10 | 1 9 Best Kill Streak 3 | 1 3 Combat Bots Only 3 | 1 3 Max Kills in Single Turn 1 | 1 1 Gunslinging . | . . Exploded . | . . Melee 1 | . 1 Uniques/NPCs Destroyed . | . . Combat | -11 -10 -------- Run | Yrd Mat Hostile Shots Fired 151 | 7 144 Missed 37 | 1 36 Hits 114 | 6 108 Projectile 114 | 6 108 Damage Taken 1209 | 65 1144 Core 251 | 10 241 Absorbed by Shields . | . . Core Remaining (%) 96 | 96 . Volleys Fired 75 | 5 70 Largest 2 | 2 2 Hottest 105 | 40 105 Shots Fired 124 | 10 114 Gun 124 | 10 114 Cannon . | . . Launcher . | . . Special . | . . Kinetic 69 | 10 59 Thermal 34 | . 34 Explosive . | . . Electromagnetic 21 | . 21 Robot Hit Streak 7 | 2 7 Robot Miss Streak 5 | 4 5 Penetration Max . | . . Secondary Targets 2 | . 2 Max Gunslinging Chain 1 | . 1 Shots Hit Robots 72 | 4 68 Core Hits 31 | 2 29 Critical Kills . | . . Critical Parts Destroyed 1 | . 1 Critical Strikes 3 | . 3 Burn 2 | . 2 Destroy 1 | . 1 Melee Attacks 7 | . 7 Impact 6 | . 6 Slashing . | . . Piercing . | . . Sneak Attacks . | . . Combat Hostiles . | . . Follow-up Attacks . | . . Damage Inflicted 964 | 53 911 Guns 867 | 53 814 Cannons . | . . Explosions . | . . Melee 97 | . 97 Ramming . | . . Kinetic 503 | 53 450 Thermal 265 | . 265 Explosive . | . . Electromagnetic 99 | . 99 Impact 97 | . 97 Slashing . | . . Piercing . | . . Highest Corruption 2 | . 2 Average Corruption 1 | . 1 Corruption Purged . | . . Corruption Blocked . | . . Effects 7 | . 7 Message Errors 1 | . 1 Matter Fused 2 | . 2 Heat Flow Errors 1 | . 1 Data Loss (minor) 3 | . 3 Overload Shots . | . . Overflow Damage 3 | . 3 Projectiles . | . . Explosions . | . . Melee 3 | . 3 Knockbacks . | . . Impact . | . . Kinetic . | . . Secondary . | . . Self-Inflicted Damage . | . . Shots . | . . Rammed . | . . Targets Rammed . | . . Kicked . | . . Crushed . | . . Highest Temperature 248 | . 248 Average Temperature 65 | . 65 Received Heat Transfer 564 | 36 528 Siege Activations . | . . Martial Activations . | . . Shielding Activations . | . . Robots Disrupted . | . . Combat Hostiles . | . . Robots Corrupted 1 | . 1 Combat Hostiles 1 | . 1 Parts Fried 1 | . 1 Impact Corruptions 1 | . 1 Robots Melted . | . . Combat Hostiles . | . . Parts Melted 2 | . 2 Heat Transferred 754 | . 754 Parts Sabotaged . | . . Parts Stolen . | . . Parts Stripped . | . . Power Chain Reactions . | . . Alert | -11 -10 ------- Run | Yrd Mat Maximum Alert Level . | . . Low Security (%) 100 | 100 100 Level 1 . | . . Level 2 . | . . Level 3 . | . . Level 4 . | . . Level 5 . | . . High Security . | . . Max Security . | . . Peak Influence 118 | 20 118 Initial . | . . Average 23 | 3 24 Influence Increases 558 | 20 538 Destroy 0b10 Robot/C 320 | 20 300 Destroy 0b10 Robot/NC 20 | . 20 Destroy Leader 66 | . 66 Trap Triggered on 0b10 30 | . 30 Successful Hack 31 | . 31 Disable Machine 15 | . 15 Destroy Structure 1 | . 1 Lose Combat Pursuer 75 | . 75 Influence Decreases 558 | 20 538 Time Decay 482 | 20 462 Lost Part 76 | . 76 Squads Dispatched 5 | . 5 Investigation 4 | . 4 Extermination . | . . Reinforcement 1 | . 1 Assault . | . . Garrison . | . . Intercept . | . . Searches Triggered . | . . Construction Impeded . | . . Haulers Reinforced . | . . Active Scanning Responses . | . . Cargo Convoy Interrupts . | . . Stealth | -11 -10 --------- Run | Yrd Mat Distress Signals 3 | . 3 Communications Jammed . | . . Distress Signals . | . . Times Spotted 41 | 1 40 Peak Tracking Total 5 | 1 5 Tactical Retreats 9 | . 9 Traps | -11 -10 ------- Run | Yrd Mat Traps Triggered . | . . Indirectly . | . . Trap Hack Attempts 25 | . 25 Triggered . | . . Disarmed . | . . Reprogrammed 9 | . 9 Reused 3 | . 3 Traps Extracted . | . . Installed . | . . Triggered 3 | . 3 Machines | -11 -10 ---------- Run | Yrd Mat Machines Disabled 1 | . 1 Max in Single Turn 1 | . 1 Machines Repaired . | . . Machines Dismantled . | . . Machines Sabotaged . | . . Overloaded Fab Kills . | . . Hacking | -11 -10 --------- Run | Yrd Mat Machines Accessed 10 | . 10 Terminals 7 | . 7 Fabricators . | . . Repair Stations 1 | . 1 Recycling Units 2 | . 2 Scanalyzers . | . . Garrison Access . | . . Total Hacks 36 | . 36 Successful 17 | . 17 Failed 19 | . 19 Catastrophic 4 | . 4 Database Lockouts . | . . Manual 5 | . 5 Terminals 27 | . 27 Fabricators . | . . Repair Stations 3 | . 3 Recycling Units 6 | . 6 Scanalyzers . | . . Garrison Access . | . . Terminal Hacks 10 | . 10 Record 2 | . 2 Branch Access Points 1 | . 1 Alert Level 2 | . 2 Reprogram Traps 1 | . 1 Dispatch Records 2 | . 2 Transport Status 1 | . 1 Hauler Manifests 1 | . 1 Fabricator Hacks . | . . Repair Station Hacks 2 | . 2 Scan Component 2 | . 2 Recycling Unit Hacks 5 | . 5 Recycle Component 1 | . 1 Process 1 | . 1 Report Inventory 1 | . 1 Retrieve Components 2 | . 2 Scanalyzer . | . . Garrison Access Hacks . | . . Unauthorized Hacks . | . . Terminals . | . . Fabricators . | . . Repair Stations . | . . Recycling Units . | . . Scanalyzers . | . . Garrison Access . | . . Data Cores Recovered 1 | . 1 Used . | . . Hacking Detections 9 | . 9 Full Trace Events 8 | . 8 Feedback Events 2 | . 2 Corruption 2 | . 2 Feedback Blocked . | . . Robot Schematics Acquired . | . . Robots Built . | . . Authchips . | . . Time . | . . Total Robot Build Rating . | . . Part Schematics Acquired . | . . Parts Built . | . . Authchips . | . . Time . | . . Total Part Build Rating . | . . Parts Repaired . | . . Time . | . . Parts Recycled 1 | . 1 Recycled Matter 13 | . 13 Retrieved Matter . | . . Retrieved Components 12 | . 12 Parts Scanalyzed . | . . Part Schematics Acquired . | . . Parts Damaged . | . . Bothacking | -11 -10 ------------ Run | Yrd Mat Used RIF Installer . | . . Robots Hacked 1 | . 1 Non-combat . | . . Combat 1 | . 1 Robot Hacks Applied 1 | . 1 parse_system 1 | . 1 Relay Couplers Released . | . . Fabnet Peak Effective % . | . . Robots Rewired . | . . Allies Hacked . | . . Hacks Repelled . | . . Allies | -11 -10 -------- Run | Yrd Mat Total Allies . | . . Largest Group . | . . Highest-Rated Group . | . . Highest-Rated Ally . | . . Total Orders . | . . Ally Attacks . | . . Total Damage . | . . Kills . | . . Allies Corrupted . | . . Allies Melted . | . . Intel | -11 -10 ------- Run | Yrd Mat Active Infowar (turns) 1555 | . 1555 Optics 162 | . 162 Terrain 862 | . 862 Structural 211 | . 211 ECM 471 | . 471 Robot Analysis Total . | . . Derelict Logs Recovered . | . . Drone Launches . | . . Drone Recoveries . | . . Exploration | -11 -10 ------------- Run | Yrd Mat Turns Passed 2041 | 127 1914 Spaces Moved 950 | 101 849 Core 72 | 69 3 Treads . | . . Legs 878 | 32 846 Wheels . | . . Hover . | . . Flight . | . . Fastest Speed 50 | 50 120 Average Speed 115 | 72 120 Slowest Speed 300 | 120 300 Overloaded Moves . | . . Propulsion Burnouts . | . . Robots Hopped . | . . Potential Cave-ins . | . . Cave-ins Triggered . | . . Exploration Rate (%) 45 | 5 85 Regions Visited 1 Branch Regions . Pre-discovered Areas . | . . Known Exits Taken . | . . Unknown Exits Taken 1 | 1 . Scrap Searched . | . . Spaces Dug . | . . Terrain Destroyed . | . . Melee . | . . Projectile . | . . AOE . | . . Terrain Rammed . | . . Walls Destroyed . | . . Machines Disabled . | . . Actions | -11 -10 --------- Run | Yrd Mat Total 1759 | 145 1614 Wait 608 | 26 582 Move 949 | 100 849 Hop . | . . Pick Up 32 | 9 23 Fast Attach 4 | . 4 Attach 18 | 5 13 Detach 1 | . 1 Swap 24 | . 24 Drop 16 | . 16 Fire 75 | 5 70 Melee 7 | . 7 Ram . | . . Kick . | . . Crush . | . . Escape Stasis . | . . Rewire . | . . Trap 25 | . 25 Miscellaneous . | . . Route ------- -11/Scrapyard -10/Materials (discovered 3 exits: [*Mat x2] / *Min) History --------- Turn | Location | Event 2 | -11/Scrapyard | Met Revision 17 69 | -11/Scrapyard | Discovered new exit (range 8) 128 | -11/Scrapyard | Entered Materials 318 | -10/Materials | Build established: Mutant 365 | -10/Materials | Discovered new exit (range 14) 390 | -10/Materials | Discovered new exit (range 16) 430 | -10/Materials | Identified exit to Mines 804 | -10/Materials | Discovered new exit (range 10) 1068 | -10/Materials | Core integrity fell below 50% 1095 | -10/Materials | Core integrity fell below 20% 1105 | -10/Materials | Lost 8 parts (1p3n2u2w) 1446 | -10/Materials | Build established: Scavenger-Mutant 2042 | -10/Materials | Destroyed by G-34 Mercenary with Small Laser Last Messages --------------- 01592_ System corrupted: Matter fused (-8). 01604_ Connecting with Repair Station... >>Scan(Sml. Storage Unit) Scanning Sml. Storage Unit... Ready to Repair: Sml. Storage Unit Rating: 1 Time: 26 01620_ ALERT: Suspicious activity at Repair Station M001. Dispatching Investigation squad. 01649_ System corrupted: Matter fused (-7). 01831_ Acquired 10 matter. 01834_ Acquired 5 matter. 01837_ Connecting with Terminal... 01837_ ALERT: Suspicious activity at Terminal M004. Dispatching Investigation squad. 01839_ System corrupted: Component data lost. 01882_ ICPLHUYZU4OF|0H1DRCQCIP7AKPWOB 01911_ System corrupted: Component data lost. Map ----- +----------------------------------------------------+ | ??????# # # """ ## ### | | ??????# # # """ ## ### | | ??????# # # ## ### | | ????#?# # # """ ## ### | | ??????########## #%*""" # ## | | ??????????#???## # """ # | | ?????????#?????# + # | | ?????#?????????# # """ # | | ????#???#????#?# # """ # | | ???????????#???# # """ # | | ???????????????# # # "" | | ??????????????## ######## "Y = | | ????????#??????# "" = | | ????#???#?#????# ] | | ??#?#??????????# | | ???????????#???# #########"T"#"" | | ?#?#?#?#??#???##% #########"""#"" | | #???########### #????######### | | ?#?## #?????????#### | | ????# T #????#???????? | | ????# #??????#?????? | | ??#?# ####### | #???????????#? | | #???# ##############???????????? | | ??#?# # ##??#?##????????? | | ##??# # #???#???????????? | | ????# #@ """ #????#??????????? | | #?#?# g """"" #?#?????????????? | | ???## # """"" ##??#???????????? | | ????# # """"" ######??????????? | | #???# # """ #???????????????? | | ##??# # #???????????????? | | ###?# # ##??#???????????? | | ?#??################?????????????? | | #??????#?#?#??#?????#????????????? | | ??#??????#??????#????????????????? | | #????#?????????#?????????????????? | | ????????##??????#????????????????? | | | | | | | | | | | | | | | | | | | | | | | | | | | +----------------------------------------------------+ Best States ------------- Heat Dissipation 35 Energy Generation 10 Energy Capacity 250 Matter Stores 300 Matter Capacity 350 Sight Range 18 Terrain Scan Range 14 Terrain Scan Density 10 ECM Strength 1 Evasion (%) 55 Item Schematics ----------------- None Robot Schematics ------------------ None Fabricated ------------ Nothing Repaired ---------- Nothing Alien Tech Used ----------------- None Achievements -------------- Hehehe Power Corrupts Challenges ------------ None Game ------ Seed WeightTiamatPlating Manual? 0 Play Time 01:09:15 Cumulative 5.4 hours Start 2025.05.31 @ 00:14:07 End 2025.05.31 @ 02:30:00 Sessions 1 Manual Loads 0 Difficulty Rogue Special Mode None Game No. 3 Rogue 3 Adventurer 0 Explorer 0 Win Type - Total 0 Types 0/0/0/0/0/0/0/0/0/0 Lore% 2 Gallery% 5 Achievement% 7 Wizard Run 0 Options --------- Layout 1 ASCII 0 Keyboard 0 Movement Mouse Keybinds 0 Fullscreen 1 Font 24/Smallcaps Map View 25x17 Zoom Use 92% Tactical HUD 1 Map Filters NONE Filters NONE Steam 1 RUN: 223ec424-e0de-4b6f-a1a0-7a2337e3a464